[Event "IIFL Wealth 4th Mumbai GM"]
[Site "Mumbai"]
[Date "2019.01.03"]
[Round "5"]
[White "Shyaamnikhil P"]
[Black "Kathmale, Sameer"]
[Result "1-0"]
[ECO "B15"]
[WhiteElo "2448"]
[BlackElo "2312"]
[Annotator "NA"]
[PlyCount "210"]
[EventDate "2018.12.30"]
[EventType "swiss"]
[EventCountry "IND"]
[SourceTitle "playchess.com"]
[Source "ChessBase"]
[SourceQuality "1"]
[TimeControl "40/5400+30:1800+30"]

1. e4 {[%emt 0:00:16]} c6 {[%emt 0:00:00]} 2. d4 {[%emt 0:00:13]} d5 {[%emt 0:00:00]} 3. Nd2 {[%emt 0:00:09]} dxe4 {[%emt 0:00:25]} 4. Nxe4 {[%emt 0:00:07]} Nf6 {[%emt 0:02:53]} 5. Nxf6+ {[%emt 0:00:41]} exf6 {[%emt 0:00:07]} 6. c3 {[%emt 0:00:34]} Bd6 {[%emt 0:00:18]} 7. Bd3 {[%emt 0:00:10]} O-O {[%emt 0:00:24]} 8. Qc2 {[%emt 0:00:09]} Re8+ {[%emt 0:00:17] B15: Caro-Kann: 3 Nc3: 3...g6 and 3...dxe4 4 Nxe4 Nf6 5 Nxf6+ exf6} 9. Ne2 {[%emt 0:00:10]} (9. Be3 h5 10. O-O-O Qa5 11. Kb1 Be6 12. c4 Na6 13. Bd2 Nb4 14. Qb3 b5 15. Bxb4 Bxb4 16. Qc2 bxc4 17. Bxc4 Bxc4 18. Qxc4 {0-1 (47) Stevic,H (2589)-Cheparinov,I (2711) Zagreb 2018}) 9... h5 {[%emt 0:00:10]} 10. O-O {[%emt 0:03:36]} h4 {[%emt 0:04:31]} 11. h3 {[%emt 0:01:15]} Nd7 {[%emt 0:00:44]} 12. Be3 {[%emt 0:00:26]} Nf8 {[%emt 0:10:10]} 13. Qd2 {[%emt 0:00:28]} Be6 {[%emt 0:05:38]} 14. Rfe1 {[%emt 0:13:26]} Qd7 {[%emt 0:03:35]} 15. Bf4 {[%emt 0:01:50] [#]} Ng6 $146 {[%emt 0:01:17]} ({Predecessor:} 15... Be7 16. Be3 {½-½ (42) Pap,M (2482)-Sedlak,N (2587) Biograd na Moru 2018}) 16. Bxd6 {[%emt 0:01:57]} Qxd6 {[%emt 0:00:08]} 17. c4 {[%emt 0:11:55]} Re7 {[%emt 0:09:40]} 18. b3 {[%emt 0:10:05]} Rae8 {[%emt 0:09:49]} 19. Bxg6 {[%emt 0:03:31]} fxg6 {[%emt 0:02:03]} 20. Nc3 {[%emt 0:00:25]} g5 {[%emt 0:09:39]} 21. Ne4 {[%emt 0:06:00]} Qd8 {[%emt 0:02:55]} 22. Nc3 {[%emt 0:11:26]} Bf7 {[%emt 0:15:45]} 23. Rxe7 {[%emt 0:01:11]} Rxe7 {[%emt 0:00:51]} 24. Rd1 {[%emt 0:02:13]} Rd7 {[%emt 0:02:09]} 25. Qd3 {[%emt 0:00:44]} a6 {[%emt 0:03:37]} 26. d5 {[%emt 0:07:43]} cxd5 {[%emt 0:00:59]} 27. cxd5 {[%emt 0:00:07]} Rd6 {[%emt 0:01:08]} 28. Qe3 {[%emt 0:01:34]} Rd7 {[%emt 0:02:09]} 29. Qd4 {[%emt 0:00:49]} Rd6 {[%emt 0:00:07]} 30. b4 {[%emt 0:01:51]} b6 {[%emt 0:02:55]} 31. Qd3 {[%emt 0:02:05]} a5 {[%emt 0:03:49]} 32. a3 {[%emt 0:01:09]} Kf8 {[%emt 0:02:50]} 33. Qd4 {[%emt 0:01:20]} axb4 {[%emt 0:01:41]} 34. axb4 {[%emt 0:00:57]} Kg8 {[%emt 0:00:05]} 35. Qe4 {[%emt 0:03:28]} Rd7 {[%emt 0:02:09]} 36. Qd3 {[%emt 0:01:35]} Rd6 {[%emt 0:00:08]} 37. Ra1 {[%emt 0:00:10]} Rd7 {[%emt 0:01:05]} 38. Qc4 {[%emt 0:01:03]} Rc7 {[%emt 0:01:08]} 39. Qd4 {[%emt 0:01:08]} Rd7 {[%emt 0:00:44]} 40. Rd1 {[%emt 0:00:00]} Rd6 {[%emt 0:00:00]} 41. Qd3 {[%emt 0:05:41]} Kf8 {[%emt 0:08:38]} 42. Qc4 {[%emt 0:01:06]} Kg8 {[%emt 0:00:19]} 43. Ra1 {[%emt 0:01:14]} Kh7 {[%emt 0:02:14]} 44. Rd1 {[%emt 0:05:55]} Kg8 {[%emt 0:01:09]} 45. f4 {[%emt 0:02:14]} f5 {[%emt 0:03:31]} 46. Re1 {[%emt 0:00:48]} b5 {[%emt 0:04:52]} 47. Qd4 {[%emt 0:02:48]} gxf4 {[%emt 0:03:56]} 48. Qxf4 {[%emt 0:00:09]} Bxd5 {[%emt 0:01:50]} 49. Rd1 {[%emt 0:02:31]} Rd7 $1 {[%emt 0:00:20]} 50. Qxf5 {[%emt 0:02:41]} Qb6+ {[%emt 0:01:11]} 51. Qf2 {[%emt 0:02:58]} Qxf2+ {[%emt 0:00:28]} 52. Kxf2 {[%emt 0:00:05]} Rf7+ {[%emt 0:00:06]} 53. Kg1 {[%emt 0:00:07]} Bc4 {[%emt 0:00:34]} 54. Rd4 {[%emt 0:00:13]} Rf1+ {[%emt 0:01:29]} 55. Kh2 {[%emt 0:00:04]} Rf2 {[%emt 0:00:52]} 56. Rxh4 {[%emt 0:00:28]} Rb2 {[%emt 0:01:04]} 57. Rf4 {[%emt 0:00:07]} Rxb4 {[%emt 0:00:41]} 58. Nd5 {[%emt 0:00:11]} g5 {[%emt 0:02:28]} 59. Rg4 {[%emt 0:02:00]} Rb1 {[%emt 0:01:46]} 60. Ne3 {[%emt 0:02:01]} Be6 {[%emt 0:01:00]} 61. Rxg5+ {[%emt 0:00:17]} Kh7 {[%emt 0:01:01]} 62. Re5 {[%emt 0:00:34]} Bg8 {[%emt 0:00:38]} (62... Ba2 $14) 63. Re7+ {[%emt 0:00:15]} (63. Nd5 $16) 63... Kg6 {[%emt 0:00:14]} 64. Rb7 {[%emt 0:01:41]} b4 {[%emt 0:00:20]} 65. Rb6+ {[%emt 0:00:35]} Kh7 {[%emt 0:01:10]} 66. Rb7+ {[%emt 0:04:10]} Kg6 {[%emt 0:00:14]} 67. Rb6+ {[%emt 0:00:07]} Kh7 {[%emt 0:00:04]} 68. Ng4 {[%emt 0:00:27]} Ba2 {[%emt 0:00:59]} (68... Kg7 $14) 69. h4 {[%emt 0:03:57]} b3 {[%emt 0:00:38] [#]} 70. h5 $18 {[%emt 0:00:06]} Rf1 {[%emt 0:01:32]} 71. Rb7+ {[%emt 0:00:07]} Kh8 {[%emt 0:01:05]} 72. Kg3 {[%emt 0:05:07]} Rf8 {[%emt 0:00:26]} 73. Kh4 {[%emt 0:00:30]} Rf5 {[%emt 0:00:43]} 74. Rb6 {[%emt 0:04:27]} Rf7 {[%emt 0:00:48]} 75. Kg5 {[%emt 0:01:16]} Rg7+ {[%emt 0:00:23]} 76. Kf4 {[%emt 0:00:09]} Rf7+ {[%emt 0:00:33]} 77. Ke5 {[%emt 0:01:45]} Rg7 {[%emt 0:00:19]} 78. Kf4 {[%emt 0:00:34]} Rf7+ {[%emt 0:00:07]} 79. Kg3 {[%emt 0:00:06]} Kh7 {[%emt 0:00:43]} 80. Rb8 {[%emt 0:00:32]} Rc7 {[%emt 0:00:40]} 81. Kh4 {[%emt 0:00:19]} Rc2 {[%emt 0:00:34]} 82. Rb7+ {[%emt 0:00:10]} Kg8 {[%emt 0:00:14]} 83. Nf6+ {[%emt 0:01:38]} Kf8 {[%emt 0:00:01]} 84. h6 {[%emt 0:00:11]} Rxg2 {[%emt 0:00:42]} 85. h7 {[%emt 0:00:12]} Rh2+ {[%emt 0:00:25]} 86. Kg5 {[%emt 0:00:17]} Bb1 {[%emt 0:00:49]} 87. Rb8+ {[%emt 0:00:05]} Ke7 {[%emt 0:00:56]} 88. h8=Q {[%emt 0:00:08]} Rxh8 {[%emt 0:00:22]} 89. Rxh8 {[%emt 0:00:03]} Bc2 {[%emt 0:00:32]} 90. Rb8 {[%emt 0:00:04]} Kd6 {[%emt 0:00:40]} 91. Kf4 {[%emt 0:00:09]} Kc7 {[%emt 0:00:26]} 92. Rb4 {[%emt 0:00:07]} Kc6 {[%emt 0:00:16]} 93. Ke3 {[%emt 0:00:07]} Kc5 {[%emt 0:00:18]} 94. Rb8 {[%emt 0:00:07]} Kc4 {[%emt 0:00:07]} 95. Kd2 {[%emt 0:00:06]} Bf5 {[%emt 0:00:14]} 96. Nh5 {[%emt 0:00:11]} Bd7 {[%emt 0:00:19]} 97. Ng3 {[%emt 0:00:09]} Be6 {[%emt 0:00:47]} 98. Ne2 {[%emt 0:00:10]} Bf5 {[%emt 0:00:16]} 99. Nc3 {[%emt 0:00:18]} Be6 {[%emt 0:00:10]} 100. Na4 {[%emt 0:00:12]} Bf7 {[%emt 0:00:11]} 101. Nb2+ {[%emt 0:00:06]} Kd4 {[%emt 0:00:08]} 102. Rb4+ {[%emt 0:00:03]} Kc5 {[%emt 0:00:07]} 103. Kc3 {[%emt 0:00:04]} Be6 {[%emt 0:00:11]} 104. Nd3+ {[%emt 0:00:05]} Kc6 {[%emt 0:00:05]} 105. Nc1 {[%emt 0:00:04]} Kd5 1-0

[Event "IIFL Wealth 4th Mumbai GM"]
[Site "Mumbai"]
[Date "2019.01.03"]
[Round "5"]
[White "Raahul V S"]
[Black "Kishor, Shazzad"]
[Result "1-0"]
[ECO "A35"]
[WhiteElo "2381"]
[BlackElo "1730"]
[Annotator "NA"]
[PlyCount "157"]
[EventDate "2018.12.30"]
[EventType "swiss"]
[EventCountry "IND"]
[SourceTitle "playchess.com"]
[Source "ChessBase"]
[SourceQuality "1"]
[TimeControl "40/5400+30:1800+30"]

1. c4 {[%emt 0:00:00]} c5 {[%emt 0:07:16]} 2. Nf3 {[%emt 0:00:00]} Nf6 {[%emt 0:00:14]} 3. Nc3 {[%emt 0:00:00]} Nc6 {[%emt 0:00:10]} 4. d4 {[%emt 0:00:11]} cxd4 {[%emt 0:00:05]} 5. Nxd4 {[%emt 0:00:03]} g6 {[%emt 0:00:43]} 6. g3 {[%emt 0:00:36]} Bg7 {[%emt 0:00:02]} 7. Bg2 {[%emt 0:00:11]} O-O {[%emt 0:00:11]} 8. O-O {[%emt 0:00:43]} a6 {[%emt 0:01:58]} 9. Nc2 {[%emt 0:01:35]} d6 {[%emt 0:01:44]} 10. Ne3 {[%emt 0:03:10]} Ne5 {[%emt 0:02:28]} 11. b3 {[%emt 0:02:29]} Neg4 {[%emt 0:00:31]} 12. Nxg4 {[%emt 0:00:51]} Nxg4 {[%emt 0:00:03]} 13. Bb2 {[%emt 0:00:01]} Nf6 {[%emt 0:01:11]} 14. Qd2 {[%emt 0:00:49]} Rb8 {[%emt 0:00:42]} 15. Rfd1 {[%emt 0:00:38]} b6 {[%emt 0:00:32]} 16. e4 {[%emt 0:00:40]} Bb7 {[%emt 0:01:54]} 17. e5 {[%emt 0:00:19]} Ne8 {[%emt 0:01:33]} 18. Nd5 {[%emt 0:01:49]} dxe5 {[%emt 0:08:29]} 19. Qb4 {[%emt 0:01:16]} Bxd5 {[%emt 0:13:44]} 20. Rxd5 {[%emt 0:00:34]} Qc7 {[%emt 0:01:28]} 21. Rad1 {[%emt 0:00:18]} a5 {[%emt 0:04:48]} 22. Qe1 {[%emt 0:01:23]} e6 {[%emt 0:08:47]} 23. Bxe5 {[%emt 0:04:10]} Bxe5 {[%emt 0:00:30]} 24. Rxe5 {[%emt 0:00:05]} Ng7 {[%emt 0:02:30]} 25. c5 {[%emt 0:03:35]} f6 {[%emt 0:05:18]} 26. Rxe6 {[%emt 0:00:51]} Nxe6 {[%emt 0:00:55]} 27. Qxe6+ {[%emt 0:00:03]} Kh8 {[%emt 0:02:18]} 28. c6 {[%emt 0:00:47]} Rbe8 {[%emt 0:06:43]} 29. Qd6 {[%emt 0:01:21]} Qxd6 {[%emt 0:09:26]} 30. Rxd6 {[%emt 0:00:05]} Rd8 {[%emt 0:00:39]} 31. Re6 {[%emt 0:00:04]} Rde8 {[%emt 0:01:41]} 32. Bd5 {[%emt 0:01:13]} Rc8 {[%emt 0:05:28]} 33. Re7 {[%emt 0:05:27]} Rfd8 {[%emt 0:00:37]} 34. Bf3 {[%emt 0:00:15]} Rd3 {[%emt 0:03:31]} 35. Kg2 {[%emt 0:00:49]} Rxf3 {[%emt 0:00:16]} 36. Kxf3 {[%emt 0:00:05]} Rxc6 {[%emt 0:00:04]} 37. Rb7 {[%emt 0:03:15]} f5 {[%emt 0:00:34]} 38. Kf4 {[%emt 0:01:34]} h6 {[%emt 0:02:38]} 39. Ke5 {[%emt 0:00:18]} Rc5+ {[%emt 0:01:07]} 40. Kf6 {[%emt 0:00:00]} Rc6+ {[%emt 0:00:00]} 41. Kf7 {[%emt 0:05:20]} g5 {[%emt 0:03:19]} 42. h4 {[%emt 0:00:38]} gxh4 {[%emt 0:04:41]} 43. gxh4 {[%emt 0:00:04]} h5 {[%emt 0:02:29]} 44. Re7 {[%emt 0:00:37]} Kh7 {[%emt 0:05:13]} 45. Re5 {[%emt 0:00:02]} Rc7+ {[%emt 0:01:38]} 46. Kf6 {[%emt 0:00:24]} Rc2 {[%emt 0:03:11]} 47. a4 {[%emt 0:05:16]} f4 {[%emt 0:04:46]} 48. Rxh5+ {[%emt 0:00:17]} Kg8 {[%emt 0:00:15]} 49. Rg5+ {[%emt 0:00:02]} Kh7 {[%emt 0:00:45]} 50. Rh5+ {[%emt 0:05:09]} Kg8 {[%emt 0:00:02]} 51. Rb5 {[%emt 0:00:03]} Rxf2 {[%emt 0:00:57]} 52. Kf5 {[%emt 0:00:40]} f3 {[%emt 0:03:06]} 53. Kf4 {[%emt 0:00:07]} Rf1 {[%emt 0:01:25]} 54. Rxb6 {[%emt 0:00:10]} Rh1 {[%emt 0:03:00]} 55. Kxf3 {[%emt 0:00:34]} Rxh4 {[%emt 0:00:08]} 56. Rb5 {[%emt 0:00:03]} Kf7 {[%emt 0:01:04]} 57. Ke2 {[%emt 0:00:05]} Rh3 {[%emt 0:01:03]} 58. Kd2 {[%emt 0:00:02]} Ke6 {[%emt 0:00:16]} 59. Kc2 {[%emt 0:00:04]} Kd6 {[%emt 0:00:39]} 60. Rxa5 {[%emt 0:00:03]} Kc6 {[%emt 0:00:14]} 61. Re5 {[%emt 0:01:25]} Kb6 {[%emt 0:00:18]} 62. Rd5 {[%emt 0:00:15]} Ka6 {[%emt 0:01:05]} 63. Rd3 {[%emt 0:00:47]} Rh4 {[%emt 0:00:07]} 64. Kc3 {[%emt 0:00:05]} Rg4 {[%emt 0:01:47]} 65. b4 {[%emt 0:00:07]} Rh4 {[%emt 0:00:14]} 66. Rd6+ {[%emt 0:00:08]} Kb7 {[%emt 0:00:10]} 67. Rd4 {[%emt 0:00:02]} Rh5 {[%emt 0:00:20]} 68. Kc4 {[%emt 0:00:04]} Rg5 {[%emt 0:00:23]} 69. Rd5 {[%emt 0:01:14]} Rg6 {[%emt 0:00:44]} 70. a5 {[%emt 0:00:06]} Rh6 {[%emt 0:00:56]} 71. Kc5 {[%emt 0:00:29]} Rc6+ {[%emt 0:00:46]} 72. Kb5 {[%emt 0:00:00]} Rc7 {[%emt 0:00:13]} 73. a6+ {[%emt 0:00:07]} Ka7 {[%emt 0:00:25]} 74. Ka5 {[%emt 0:00:02]} Rh7 {[%emt 0:00:58]} 75. b5 {[%emt 0:00:03]} Rh8 {[%emt 0:01:57]} 76. b6+ {[%emt 0:00:17]} Ka8 {[%emt 0:02:10]} 77. a7 {[%emt 0:00:08]} Kb7 {[%emt 0:02:56]} 78. Rd7+ {[%emt 0:00:02]} Ka8 {[%emt 0:00:36]} 79. Ka6 {[%emt 0:00:02]} 1-0

[Event "IIFL Wealth 4th Mumbai GM"]
[Site "Mumbai"]
[Date "2019.01.03"]
[Round "5"]
[White "Raghunandan, Kaumandur Srihari"]
[Black "Konguvel, Ponnuswamy"]
[Result "1-0"]
[ECO "A04"]
[WhiteElo "2378"]
[BlackElo "2282"]
[Annotator "NA"]
[PlyCount "87"]
[EventDate "2018.12.30"]
[EventType "swiss"]
[EventCountry "IND"]
[SourceTitle "playchess.com"]
[Source "ChessBase"]
[SourceQuality "1"]
[TimeControl "40/5400+30:1800+30"]

1. Nf3 {[%emt 0:00:00]} g6 {[%emt 0:00:47]} 2. e4 {[%emt 0:00:00]} c5 {[%emt 0:00:33]} 3. c3 {[%emt 0:00:08]} d5 {[%emt 0:00:42]} 4. e5 {[%emt 0:00:08]} Nc6 {[%emt 0:01:45]} 5. d4 {[%emt 0:00:08]} Bg4 {[%emt 0:00:31]} 6. Bb5 {[%emt 0:00:08]} Qb6 {[%emt 0:02:24]} 7. Bxc6+ {[%emt 0:00:10]} Qxc6 {[%emt 0:11:13]} 8. O-O {[%emt 0:00:08]} e6 {[%emt 0:01:40]} 9. dxc5 {[%emt 0:10:17]} Bxc5 {[%emt 0:01:03]} 10. Nbd2 {[%emt 0:04:49]} Ne7 {[%emt 0:04:52]} 11. h3 {[%emt 0:00:17]} Bxf3 {[%emt 0:09:04]} 12. Nxf3 {[%emt 0:05:52]} Nf5 {[%emt 0:00:27]} 13. g4 {[%emt 0:12:53]} Ne7 {[%emt 0:20:26]} 14. Bh6 {[%emt 0:07:43]} Qc7 {[%emt 0:02:21]} 15. b4 {[%emt 0:18:43]} Bb6 {[%emt 0:00:13]} 16. a4 {[%emt 0:00:29]} Qc4 {[%emt 0:05:38]} 17. a5 {[%emt 0:02:57]} Bc7 {[%emt 0:00:35]} 18. Qd4 {[%emt 0:06:02]} Qxd4 {[%emt 0:16:31]} 19. cxd4 {[%emt 0:00:12]} Nc6 {[%emt 0:01:06]} 20. Rfc1 {[%emt 0:13:22]} Kd7 {[%emt 0:03:18]} 21. b5 {[%emt 0:01:52]} Nxa5 {[%emt 0:00:02]} 22. Rxc7+ {[%emt 0:00:07]} Kxc7 {[%emt 0:00:03]} 23. Rxa5 {[%emt 0:00:08]} Kb6 {[%emt 0:00:02]} 24. Ra1 {[%emt 0:00:30]} Rhc8 {[%emt 0:01:29]} 25. Rb1 {[%emt 0:03:55]} Rc3 {[%emt 0:02:27]} 26. Be3 {[%emt 0:02:18]} Rac8 {[%emt 0:05:24]} 27. Ng5 {[%emt 0:00:42]} R8c7 {[%emt 0:00:08]} 28. Nxh7 {[%emt 0:00:27]} Ra3 {[%emt 0:00:03]} 29. Nf6 {[%emt 0:00:41]} Rcc3 {[%emt 0:02:42]} 30. h4 {[%emt 0:02:26]} Rab3 {[%emt 0:03:40]} 31. Rxb3 {[%emt 0:00:20]} Rxb3 {[%emt 0:00:02]} 32. h5 {[%emt 0:00:16]} gxh5 {[%emt 0:00:02]} 33. gxh5 {[%emt 0:00:07]} Rc3 {[%emt 0:00:05]} 34. h6 {[%emt 0:01:05]} Rc8 {[%emt 0:00:05]} 35. h7 {[%emt 0:00:43]} Rh8 {[%emt 0:00:01]} 36. Bh6 {[%emt 0:00:19]} Kxb5 {[%emt 0:00:12]} 37. Bg7 {[%emt 0:00:06]} Rxh7 {[%emt 0:00:25]} 38. Nxh7 {[%emt 0:00:06]} a5 {[%emt 0:00:02]} 39. Ng5 {[%emt 0:01:10]} Ka4 {[%emt 0:04:39]} 40. Nxf7 {[%emt 0:00:00]} b5 {[%emt 0:00:00]} 41. Nd8 {[%emt 0:01:43]} b4 {[%emt 0:04:49]} 42. Nxe6 {[%emt 0:00:12]} Kb5 {[%emt 0:00:52]} 43. Nc5 {[%emt 0:00:27]} a4 {[%emt 0:00:07]} 44. e6 1-0

[Event "IIFL Wealth 4th Mumbai GM"]
[Site "Mumbai"]
[Date "2019.01.03"]
[Round "5"]
[White "Rathnakaran, K.."]
[Black "Movsziszian, Karen"]
[Result "1-0"]
[ECO "B08"]
[WhiteElo "2366"]
[BlackElo "2505"]
[Annotator "ChessBase"]
[PlyCount "75"]
[EventDate "2018.12.30"]
[EventType "swiss"]
[EventCountry "IND"]
[SourceTitle "playchess.com"]
[Source "ChessBase"]
[SourceQuality "1"]
[TimeControl "40/5400+30:1800+30"]

1. e4 {[%emt 0:00:00]} d6 {[%emt 0:00:00]} 2. d4 {[%emt 0:00:00]} Nf6 {[%emt 0:00:00]} 3. Nc3 {[%emt 0:00:00]} g6 {[%emt 0:00:00]} 4. Nf3 {[%emt 0:00:06]} Bg7 {[%emt 0:00:14]} 5. Be3 {[%emt 0:00:09]} O-O {[%emt 0:00:53]} 6. Qd2 {[%emt 0:00:05]} a6 {[%emt 0:00:24]} 7. Bh6 {[%emt 0:00:13]} b5 {[%emt 0:00:13]} 8. Bd3 {[%emt 0:00:08]} Nc6 {[%emt 0:00:24]} 9. h4 {[%emt 0:00:20]} e5 {[%emt 0:01:19]} 10. d5 {[%emt 0:01:31]} Ne7 {[%emt 0:00:30]} 11. h5 {[%emt 0:01:53]} Nxh5 {[%emt 0:04:43]} 12. O-O-O {[%emt 0:00:17]} f6 {[%emt 0:08:04]} 13. Rh4 {[%emt 0:03:04]} Rf7 {[%emt 0:01:36]} 14. Rdh1 {[%emt 0:07:42]} Bxh6 {[%emt 0:20:18]} 15. Qxh6 {[%emt 0:00:07]} Qf8 {[%emt 0:02:28]} 16. Qd2 {[%emt 0:04:30]} Nf4 {[%emt 0:02:23]} 17. Bf1 {[%emt 0:03:03]} g5 {[%emt 0:00:29]} 18. R4h2 {[%emt 0:01:34]} Bd7 {[%emt 0:02:58]} 19. Nd1 {[%emt 0:02:37]} c6 {[%emt 0:04:09]} 20. g3 {[%emt 0:07:51]} Nfg6 {[%emt 0:02:12]} 21. Ne3 {[%emt 0:00:15]} cxd5 {[%emt 0:04:35]} 22. exd5 {[%emt 0:05:11]} g4 {[%emt 0:03:48]} 23. Ne1 {[%emt 0:00:07]} e4 {[%emt 0:01:19]} 24. Qb4 {[%emt 0:01:34]} f5 {[%emt 0:02:50]} 25. Qxd6 {[%emt 0:00:12]} Qc8 {[%emt 0:00:21]} 26. c3 {[%emt 0:07:08]} a5 {[%emt 0:00:21]} 27. a4 {[%emt 0:00:07]} b4 {[%emt 0:03:06]} 28. Nc4 {[%emt 0:02:36]} bxc3 {[%emt 0:00:06]} 29. b3 {[%emt 0:00:33]} Qb7 {[%emt 0:02:17]} 30. Nc2 {[%emt 0:05:45]} Nxd5 {[%emt 0:09:17]} 31. Rxh7 {[%emt 0:08:16]} Ra6 {[%emt 0:04:41]} 32. Nxa5 {[%emt 0:18:45]} Qxb3 {[%emt 0:00:06]} 33. Rh8+ {[%emt 0:00:34]} Nxh8 {[%emt 0:00:22]} 34. Rxh8+ {[%emt 0:00:05]} Kxh8 {[%emt 0:00:44]} 35. Qe5+ {[%emt 0:00:07]} Nf6 {[%emt 0:00:31]} 36. Nxb3 {[%emt 0:00:08]} Rxa4 {[%emt 0:00:36]} 37. Nc5 {[%emt 0:00:41]} Ra5 {[%emt 0:01:37]} 38. Bc4 {[%emt 0:01:06]} 1-0

[Event "IIFL Wealth 4th Mumbai GM"]
[Site "Mumbai"]
[Date "2019.01.03"]
[Round "5"]
[White "Kulkarni, Vikramaditya"]
[Black "Safranska, Anda"]
[Result "1-0"]
[ECO "B19"]
[WhiteElo "2345"]
[BlackElo "2189"]
[Annotator "NA"]
[PlyCount "57"]
[EventDate "2018.12.30"]
[EventType "swiss"]
[EventCountry "IND"]
[SourceTitle "playchess.com"]
[Source "ChessBase"]
[SourceQuality "1"]
[TimeControl "40/5400+30:1800+30"]

1. e4 {[%emt 0:00:00]} c6 {[%emt 0:00:00]} 2. d4 {[%emt 0:00:00]} d5 {[%emt 0:00:02]} 3. Nd2 {[%emt 0:00:00]} dxe4 {[%emt 0:00:07]} 4. Nxe4 {[%emt 0:00:00]} Bf5 {[%emt 0:00:09]} 5. Ng3 {[%emt 0:00:00]} Bg6 {[%emt 0:00:06]} 6. h4 {[%emt 0:00:00]} h6 {[%emt 0:00:04]} 7. Nf3 {[%emt 0:00:03]} Nd7 {[%emt 0:00:04]} 8. h5 {[%emt 0:00:05]} Bh7 {[%emt 0:00:05]} 9. Bd3 {[%emt 0:00:08]} Bxd3 {[%emt 0:00:05]} 10. Qxd3 {[%emt 0:00:06]} e6 {[%emt 0:00:06]} 11. Bd2 {[%emt 0:01:46]} Ngf6 {[%emt 0:01:02]} 12. Ne4 {[%emt 0:00:15]} Be7 {[%emt 0:01:22]} 13. O-O-O {[%emt 0:00:51]} O-O {[%emt 0:01:23]} 14. Nxf6+ {[%emt 0:00:08]} Nxf6 {[%emt 0:00:30]} 15. Rdg1 {[%emt 0:05:14]} Ng4 {[%emt 0:03:09]} 16. Qe2 {[%emt 0:01:09]} Qb6 {[%emt 0:08:57]} 17. Ne5 {[%emt 0:01:30]} Nxe5 {[%emt 0:04:04]} 18. dxe5 {[%emt 0:01:08]} Bc5 {[%emt 0:00:19]} 19. g4 {[%emt 0:02:18]} f6 {[%emt 0:03:37]} 20. exf6 {[%emt 0:11:45]} Rxf6 {[%emt 0:03:07]} 21. g5 {[%emt 0:01:51]} hxg5 {[%emt 0:00:22]} 22. Bxg5 {[%emt 0:00:10]} Rxf2 {[%emt 0:00:33]} 23. Qxe6+ {[%emt 0:00:05]} Kf8 {[%emt 0:01:35]} 24. h6 {[%emt 0:00:21]} Bd4 {[%emt 0:02:02]} 25. hxg7+ {[%emt 0:01:08]} Bxg7 {[%emt 0:00:38]} 26. Be7+ {[%emt 0:00:06]} Ke8 {[%emt 0:00:42]} 27. Rh8+ {[%emt 0:00:07]} Bf8 {[%emt 0:00:33]} 28. Bxf8+ {[%emt 0:00:07]} Kd8 {[%emt 0:00:11]} 29. Bd6+ {[%emt 0:00:04]} 1-0

[Event "IIFL Wealth 4th Mumbai GM"]
[Site "Mumbai"]
[Date "2019.01.03"]
[Round "5"]
[White "Tran, Minh Thang"]
[Black "Stupak, Kirill"]
[Result "1-0"]
[ECO "A06"]
[WhiteElo "2342"]
[BlackElo "2557"]
[Annotator "ChessBase"]
[PlyCount "77"]
[EventDate "2018.12.30"]
[EventType "swiss"]
[EventCountry "IND"]
[SourceTitle "playchess.com"]
[Source "ChessBase"]
[SourceQuality "1"]
[TimeControl "40/5400+30:1800+30"]

1. Nf3 {[%emt 0:00:00]} d5 {[%emt 0:00:00]} 2. e3 {[%emt 0:00:00]} Nf6 {[%emt 0:00:45]} 3. c4 {[%emt 0:00:05]} g6 {[%emt 0:00:18]} 4. b3 {[%emt 0:03:04]} Bg7 {[%emt 0:00:06]} 5. Bb2 {[%emt 0:00:07]} c5 {[%emt 0:00:59]} 6. cxd5 {[%emt 0:00:46]} Qxd5 {[%emt 0:00:04]} 7. Nc3 {[%emt 0:00:18]} Qf5 {[%emt 0:01:19]} 8. d4 {[%emt 0:00:21]} O-O {[%emt 0:01:14]} 9. Bd3 {[%emt 0:00:59]} Qh5 {[%emt 0:00:25]} 10. Ne4 {[%emt 0:08:15]} Nxe4 {[%emt 0:10:35]} 11. Bxe4 {[%emt 0:00:44]} Nc6 {[%emt 0:26:06]} 12. O-O {[%emt 0:04:04]} cxd4 {[%emt 0:11:07]} 13. Nxd4 {[%emt 0:09:31]} Qh4 {[%emt 0:00:45]} 14. Bxc6 {[%emt 0:01:52]} bxc6 {[%emt 0:00:03]} 15. Nf3 {[%emt 0:01:48]} Qh6 {[%emt 0:01:45]} 16. Bxg7 {[%emt 0:01:48]} Qxg7 {[%emt 0:00:01]} 17. Rc1 {[%emt 0:00:30]} Ba6 {[%emt 0:01:16]} 18. Re1 {[%emt 0:00:13]} Rfd8 {[%emt 0:00:23]} 19. Qc2 {[%emt 0:00:15]} Rd6 {[%emt 0:00:58]} 20. Qc5 {[%emt 0:00:59]} Bb7 {[%emt 0:04:36]} 21. h3 {[%emt 0:09:35]} Qf8 {[%emt 0:00:34]} 22. Red1 {[%emt 0:02:52]} Qd8 {[%emt 0:01:35]} 23. Rd4 {[%emt 0:00:21]} a5 {[%emt 0:02:19]} 24. Rcd1 {[%emt 0:03:01]} Rd5 {[%emt 0:00:39]} 25. e4 {[%emt 0:00:18]} Rxc5 {[%emt 0:06:28]} 26. Rxd8+ {[%emt 0:00:33]} Rxd8 {[%emt 0:00:02]} 27. Rxd8+ {[%emt 0:00:16]} Kg7 {[%emt 0:00:01]} 28. Rd7 {[%emt 0:00:14]} Bc8 {[%emt 0:00:17]} 29. Rxe7 {[%emt 0:00:14]} a4 {[%emt 0:00:03]} 30. Rc7 {[%emt 0:03:59]} axb3 {[%emt 0:01:07]} 31. axb3 {[%emt 0:00:19]} Ba6 {[%emt 0:00:10]} 32. Nd4 {[%emt 0:00:15]} Re5 {[%emt 0:01:36]} 33. f3 {[%emt 0:01:04]} c5 {[%emt 0:00:04]} 34. Nc6 {[%emt 0:01:29]} Re8 {[%emt 0:00:14]} 35. Na5 {[%emt 0:00:18]} Re5 {[%emt 0:00:13]} 36. Kf2 {[%emt 0:00:57]} Kg8 {[%emt 0:00:36]} 37. Nc4 {[%emt 0:01:56]} Bxc4 {[%emt 0:00:23]} 38. bxc4 {[%emt 0:00:13]} f5 {[%emt 0:00:01]} 39. Ke3 {[%emt 0:00:17]} 1-0